[Event "*** Titled Tuesday Blitz"]
[Site "Chess.com"]
[Date "2019.04.02"]
[Round "6"]
[White "norwaytoadog"]
[Black "Orest_Vovk"]
[Result "1-0"]
[WhiteElo "2243"]
[BlackElo "2327"]
[TimeControl "180+2"]
[EndTime "15:21:26 PDT"]
[Termination "norwaytoadog won on time"]

1. e4 {[%clk 0:03:01.9]} 1... g5 {[%clk 0:03:00.7]} 2. d4 {[%clk 0:02:59.3]}
2... Bg7 {[%clk 0:03:02]} 3. Be3 {[%clk 0:02:54.1]} 3... c5 {[%clk 0:03:02.8]}
4. c3 {[%clk 0:02:52.3]} 4... Qb6 {[%clk 0:03:02.8]} 5. Qd2 {[%clk 0:02:45.5]}
5... cxd4 {[%clk 0:02:57.9]} 6. cxd4 {[%clk 0:02:45]} 6... Nc6 {[%clk
0:02:56.4]} 7. Ne2 {[%clk 0:02:31.5]} 7... d5 {[%clk 0:02:46.4]} 8. Nbc3 {[%clk
0:02:15.8]} 8... dxe4 {[%clk 0:02:42.6]} 9. d5 {[%clk 0:02:11.5]} 9... Qc7
{[%clk 0:01:45.1]} 10. dxc6 {[%clk 0:02:02.2]} 10... bxc6 {[%clk 0:01:46]} 11.
Rc1 {[%clk 0:01:50.6]} 11... Nf6 {[%clk 0:01:37.1]} 12. Bxg5 {[%clk 0:01:48]}
12... O-O {[%clk 0:01:35.7]} 13. Bh6 {[%clk 0:01:44.1]} 13... Bxh6 {[%clk
0:01:30.8]} 14. Qxh6 {[%clk 0:01:44.7]} 14... Rd8 {[%clk 0:01:21.3]} 15. Ng3
{[%clk 0:01:36]} 15... Rb8 {[%clk 0:01:16.4]} 16. Bc4 {[%clk 0:01:23.6]} 16...
Rxb2 {[%clk 0:01:09.2]} 17. O-O {[%clk 0:01:22.3]} 17... Qe5 {[%clk 0:01:05.4]}
18. Bb3 {[%clk 0:01:08.6]} 18... Ng4 {[%clk 0:00:51.6]} 19. Qh5 {[%clk 0:00:57]}
19... Qf4 {[%clk 0:00:39.5]} 20. Ncxe4 {[%clk 0:00:50.8]} 20... Rxb3 {[%clk
0:00:18.9]} 21. axb3 {[%clk 0:00:47.4]} 21... Rd5 {[%clk 0:00:19.9]} 22. Qh4
{[%clk 0:00:42.7]} 22... f5 {[%clk 0:00:16.1]} 23. Qg5+ {[%clk 0:00:36.2]} 23...
Qxg5 {[%clk 0:00:16.2]} 24. Nxg5 {[%clk 0:00:37.4]} 24... f4 {[%clk 0:00:15.1]}
25. N3e4 {[%clk 0:00:34.9]} 25... Bf5 {[%clk 0:00:14.6]} 26. Rfe1 {[%clk
0:00:29.4]} 26... h6 {[%clk 0:00:11.4]} 27. Nh3 {[%clk 0:00:27.8]} 27... e5
{[%clk 0:00:10.6]} 28. f3 {[%clk 0:00:28.2]} 28... Ne3 {[%clk 0:00:11]} 29. Nf6+
{[%clk 0:00:29.1]} 29... Kf7 {[%clk 0:00:10.5]} 30. Nxd5 {[%clk 0:00:30.1]}
30... cxd5 {[%clk 0:00:12.4]} 31. Rc7+ {[%clk 0:00:29.3]} 31... Ke6 {[%clk
0:00:13.1]} 32. Nf2 {[%clk 0:00:27.7]} 32... d4 {[%clk 0:00:13.7]} 33. Rxa7
{[%clk 0:00:27.6]} 33... d3 {[%clk 0:00:14.3]} 34. Ra2 {[%clk 0:00:24.5]} 34...
Kd5 {[%clk 0:00:13.8]} 35. Rb2 {[%clk 0:00:23.2]} 35... Kd4 {[%clk 0:00:14.1]}
36. Rc1 {[%clk 0:00:22.4]} 36... Nd5 {[%clk 0:00:06.2]} 37. b4 {[%clk
0:00:21.8]} 37... Nc3 {[%clk 0:00:05.5]} 38. Rxc3 {[%clk 0:00:18.2]} 38... Kxc3
{[%clk 0:00:06.4]} 39. Rb1 {[%clk 0:00:18.1]} 39... d2 {[%clk 0:00:06.8]} 40.
Rd1 {[%clk 0:00:16.2]} 40... Bc2 {[%clk 0:00:07.1]} 41. b5 {[%clk 0:00:15.4]}
41... Ba4 {[%clk 0:00:04.9]} 42. b6 {[%clk 0:00:13.5]} 42... Bc6 {[%clk
0:00:04.5]} 43. g3 {[%clk 0:00:11.1]} 43... Bxf3 {[%clk 0:00:04]} 44. Rb1 {[%clk
0:00:10.5]} 44... Kc2 {[%clk 0:00:04.7]} 45. b7 {[%clk 0:00:10.7]} 45... Bxb7
{[%clk 0:00:05.4]} 46. Rxb7 {[%clk 0:00:11.5]} 46... e4 {[%clk 0:00:07.3]} 47.
Rc7+ {[%clk 0:00:10.8]} 47... Kb2 {[%clk 0:00:07.5]} 48. Rd7 {[%clk 0:00:10.4]}
48... e3 {[%clk 0:00:08.7]} 49. Kf1 {[%clk 0:00:08.9]} 49... exf2 {[%clk
0:00:08.5]} 50. Kxf2 {[%clk 0:00:09.1]} 50... fxg3+ {[%clk 0:00:10]} 51. hxg3
{[%clk 0:00:10.2]} 51... Kc1 {[%clk 0:00:09.9]} 52. Ke2 {[%clk 0:00:10.9]} 52...
d1=Q+ {[%clk 0:00:07]} 53. Rxd1+ {[%clk 0:00:11.6]} 1-0

[Event "*** Titled Tuesday Blitz"]
[Site "Chess.com"]
[Date "2019.04.02"]
[Round "6"]
[White "scaryninja"]
[Black "GMJimKnopf"]
[Result "1-0"]
[WhiteElo "2483"]
[BlackElo "2563"]
[TimeControl "180+2"]
[EndTime "15:21:37 PDT"]
[Termination "scaryninja won by resignation"]

1. d4 {[%clk 0:03:01.9]} 1... Nf6 {[%clk 0:02:58.4]} 2. Bf4 {[%clk 0:03:02.1]}
2... g6 {[%clk 0:02:58.2]} 3. Nc3 {[%clk 0:03:01.9]} 3... Bg7 {[%clk 0:02:59.2]}
4. e4 {[%clk 0:03:03]} 4... d5 {[%clk 0:03:00.4]} 5. e5 {[%clk 0:03:01.1]} 5...
Nh5 {[%clk 0:03:01.5]} 6. Be3 {[%clk 0:02:54.9]} 6... Bf8 {[%clk 0:03:02.5]} 7.
Be2 {[%clk 0:02:45.1]} 7... Ng7 {[%clk 0:03:03.4]} 8. Nf3 {[%clk 0:02:29]} 8...
Bg4 {[%clk 0:03:02.9]} 9. h3 {[%clk 0:02:27.7]} 9... Bxf3 {[%clk 0:03:04]} 10.
Bxf3 {[%clk 0:02:29.2]} 10... e6 {[%clk 0:03:03.8]} 11. g4 {[%clk 0:02:28.8]}
11... h5 {[%clk 0:03:04.5]} 12. Qd2 {[%clk 0:02:29.7]} 12... Nd7 {[%clk
0:03:04.1]} 13. O-O-O {[%clk 0:02:28.8]} 13... Nb6 {[%clk 0:03:05.3]} 14. b3
{[%clk 0:02:27.8]} 14... Qe7 {[%clk 0:03:02.2]} 15. Kb1 {[%clk 0:02:26.6]} 15...
a5 {[%clk 0:02:58.7]} 16. a4 {[%clk 0:02:24.5]} 16... Qd7 {[%clk 0:02:53]} 17.
Qd3 {[%clk 0:02:20.3]} 17... Bb4 {[%clk 0:02:46.5]} 18. Ne2 {[%clk 0:02:16.5]}
18... Be7 {[%clk 0:02:45.5]} 19. Nf4 {[%clk 0:02:00.3]} 19... h4 {[%clk
0:02:04.5]} 20. Bc1 {[%clk 0:01:37]} 20... c5 {[%clk 0:01:55.3]} 21. dxc5 {[%clk
0:01:34.2]} 21... Bxc5 {[%clk 0:01:57.2]} 22. Be3 {[%clk 0:01:32.9]} 22... Rc8
{[%clk 0:01:54.8]} 23. Bxc5 {[%clk 0:01:25.2]} 23... Rxc5 {[%clk 0:01:56.7]} 24.
Qd4 {[%clk 0:01:26.7]} 24... Qc7 {[%clk 0:01:56.9]} 25. Nd3 {[%clk 0:01:17.2]}
25... Rc3 {[%clk 0:01:48.1]} 26. Rd2 {[%clk 0:01:00.1]} 26... O-O {[%clk
0:01:46.5]} 27. Bd1 {[%clk 0:00:41.9]} 27... Rc8 {[%clk 0:01:42.4]} 28. Nc1
{[%clk 0:00:41.9]} 28... Nd7 {[%clk 0:01:37.3]} 29. Na2 {[%clk 0:00:33.5]} 29...
Rc5 {[%clk 0:01:30.6]} 30. f4 {[%clk 0:00:34.8]} 30... b5 {[%clk 0:01:25.1]} 31.
axb5 {[%clk 0:00:26.9]} 31... Rxb5 {[%clk 0:01:27]} 32. Re1 {[%clk 0:00:27.9]}
32... a4 {[%clk 0:01:25.6]} 33. Re3 {[%clk 0:00:16.3]} 33... Nc5 {[%clk
0:01:19]} 34. b4 {[%clk 0:00:15]} 34... Ne4 {[%clk 0:01:17.6]} 35. Rxe4 {[%clk
0:00:13.7]} 35... dxe4 {[%clk 0:01:19.5]} 36. Qxe4 {[%clk 0:00:15.1]} 36... g5
{[%clk 0:01:14.6]} 37. Be2 {[%clk 0:00:09.8]} 37... Rd5 {[%clk 0:01:13.7]} 38.
Rxd5 {[%clk 0:00:09.3]} 38... exd5 {[%clk 0:01:15.6]} 39. Qd3 {[%clk 0:00:08]}
39... gxf4 {[%clk 0:01:15.4]} 40. Bf3 {[%clk 0:00:08.9]} 40... Qxe5 {[%clk
0:01:14.8]} 41. Qxd5 {[%clk 0:00:03.6]} 41... Qe1+ {[%clk 0:00:52.9]} 42. Qd1
{[%clk 0:00:04.6]} 42... Qe3 {[%clk 0:00:51.3]} 43. c3 {[%clk 0:00:03.8]} 43...
a3 {[%clk 0:00:51.8]} 44. b5 {[%clk 0:00:03.4]} 44... Ne6 {[%clk 0:00:48.7]} 45.
Bc6 {[%clk 0:00:04.6]} 45... Qf2 {[%clk 0:00:31.7]} 46. Qc1 {[%clk 0:00:05.3]}
46... f3 {[%clk 0:00:22.4]} 47. Nb4 {[%clk 0:00:06.4]} 47... Qe2 {[%clk
0:00:17.1]} 48. Nd5 {[%clk 0:00:06.9]} 48... Qb2+ {[%clk 0:00:12.6]} 49. Qxb2
{[%clk 0:00:07.5]} 49... axb2 {[%clk 0:00:14.5]} 50. Ne7+ {[%clk 0:00:07.8]}
50... Kf8 {[%clk 0:00:15.3]} 51. Nxc8 {[%clk 0:00:09.7]} 51... Ng5 {[%clk
0:00:14.9]} 52. Bxf3 {[%clk 0:00:10.1]} 52... Nxf3 {[%clk 0:00:15.7]} 53. b6
{[%clk 0:00:12]} 53... Nd2+ {[%clk 0:00:16.2]} 54. Kxb2 {[%clk 0:00:12.7]} 54...
Nc4+ {[%clk 0:00:18.1]} 55. Kb3 {[%clk 0:00:12.9]} 55... Na5+ {[%clk 0:00:20]}
56. Ka4 {[%clk 0:00:13.8]} 56... Nb7 {[%clk 0:00:21.7]} 57. Kb5 {[%clk
0:00:15.1]} 57... Ke8 {[%clk 0:00:22.3]} 58. Kc6 {[%clk 0:00:16]} 58... Na5+
{[%clk 0:00:23.5]} 59. Kc7 {[%clk 0:00:15.9]} 59... f6 {[%clk 0:00:21.6]} 60. b7
{[%clk 0:00:15.5]} 60... Nxb7 {[%clk 0:00:23.1]} 61. Kxb7 {[%clk 0:00:17.4]}
61... Kf7 {[%clk 0:00:24.8]} 62. c4 {[%clk 0:00:18.7]} 62... Ke6 {[%clk
0:00:26.7]} 63. c5 {[%clk 0:00:20.1]} 63... Ke5 {[%clk 0:00:28.6]} 64. c6 {[%clk
0:00:21.7]} 64... f5 {[%clk 0:00:30.5]} 65. gxf5 {[%clk 0:00:22.8]} 65... Kxf5
{[%clk 0:00:31.3]} 66. c7 {[%clk 0:00:24.1]} 66... Kf4 {[%clk 0:00:33.2]} 67.
Nd6 {[%clk 0:00:25.2]} 67... Kg3 {[%clk 0:00:35.1]} 68. c8=Q {[%clk 0:00:26.3]}
1-0

[Event "*** Titled Tuesday Blitz"]
[Site "Chess.com"]
[Date "2019.04.02"]
[Round "6"]
[White "pheonixking2000"]
[Black "GadimbayliA"]
[Result "0-1"]
[WhiteElo "2776"]
[BlackElo "2813"]
[TimeControl "180+2"]
[EndTime "15:21:40 PDT"]
[Termination "GadimbayliA won by resignation"]

1. d4 {[%clk 0:03:01.9]} 1... Nf6 {[%clk 0:03:00.5]} 2. Nf3 {[%clk 0:03:02.7]}
2... e6 {[%clk 0:03:01.3]} 3. Bf4 {[%clk 0:03:03.4]} 3... d5 {[%clk 0:03:02.3]}
4. e3 {[%clk 0:03:04.2]} 4... c5 {[%clk 0:03:03.6]} 5. Nbd2 {[%clk 0:03:04.9]}
5... Nc6 {[%clk 0:03:04.2]} 6. c3 {[%clk 0:03:06.4]} 6... Bd6 {[%clk 0:03:05.5]}
7. Bg3 {[%clk 0:03:03.7]} 7... O-O {[%clk 0:03:06.7]} 8. Bb5 {[%clk 0:03:05.3]}
8... Ne7 {[%clk 0:03:05.5]} 9. Bd3 {[%clk 0:03:03.1]} 9... c4 {[%clk 0:03:06.4]}
10. Bc2 {[%clk 0:03:03.9]} 10... b5 {[%clk 0:03:07.9]} 11. e4 {[%clk 0:02:58.7]}
11... dxe4 {[%clk 0:02:42.8]} 12. Nxe4 {[%clk 0:02:59.7]} 12... Nxe4 {[%clk
0:02:44.4]} 13. Bxe4 {[%clk 0:03:00.6]} 13... Rb8 {[%clk 0:02:46]} 14. Bxh7+
{[%clk 0:01:48.8]} 14... Kxh7 {[%clk 0:02:47.9]} 15. Ng5+ {[%clk 0:01:46]} 15...
Kg6 {[%clk 0:02:44.4]} 16. Ne4 {[%clk 0:01:00.9]} 16... Nf5 {[%clk 0:02:31.4]}
17. Qg4+ {[%clk 0:00:51.8]} 17... Kh7 {[%clk 0:02:26.5]} 18. Bxd6 {[%clk
0:00:30.1]} 18... Nxd6 {[%clk 0:02:28.4]} 19. Qg3 {[%clk 0:00:19]} 19... Rb6
{[%clk 0:02:26.1]} 20. Ng5+ {[%clk 0:00:18.8]} 20... Kg8 {[%clk 0:02:17.3]} 21.
Qh4 {[%clk 0:00:20]} 21... Re8 {[%clk 0:02:18.4]} 22. Qh7+ {[%clk 0:00:21.6]}
22... Kf8 {[%clk 0:02:19]} 23. Qh8+ {[%clk 0:00:19.2]} 23... Ke7 {[%clk
0:02:20.3]} 24. Qxg7 {[%clk 0:00:20.7]} 24... Rg8 {[%clk 0:02:18.7]} 25. Qh6
{[%clk 0:00:20.9]} 25... Rg6 {[%clk 0:02:11.9]} 26. Qh4 {[%clk 0:00:11.5]} 26...
Kd7 {[%clk 0:02:13]} 27. f4 {[%clk 0:00:11.3]} 27... Ne4 {[%clk 0:01:53.3]} 28.
Qh7 {[%clk 0:00:07]} 28... Nxg5 {[%clk 0:01:51.1]} 29. fxg5 {[%clk 0:00:08.9]}
29... Qg8 {[%clk 0:01:51.3]} 30. Qxg8 {[%clk 0:00:09.1]} 30... Rxg8 {[%clk
0:01:53.2]} 31. h4 {[%clk 0:00:10.7]} 31... Bb7 {[%clk 0:01:53.4]} 32. O-O
{[%clk 0:00:11.1]} 32... f5 {[%clk 0:01:53.3]} 33. Kh2 {[%clk 0:00:07.8]} 33...
Bd5 {[%clk 0:01:52.2]} 34. g4 {[%clk 0:00:08.9]} 34... Be4 {[%clk 0:01:43.2]}
35. Kg3 {[%clk 0:00:08.2]} 35... Rbb8 {[%clk 0:01:40.3]} 36. a3 {[%clk 0:00:08]}
36... Rbf8 {[%clk 0:01:37.9]} 37. Rf4 {[%clk 0:00:08.8]} 37... Kd6 {[%clk
0:01:20]} 38. Re1 {[%clk 0:00:09]} 38... Rb8 {[%clk 0:01:18]} 39. Re2 {[%clk
0:00:09.1]} 39... a5 {[%clk 0:01:18.6]} 40. Re1 {[%clk 0:00:04.2]} 40... b4
{[%clk 0:01:16.3]} 41. axb4 {[%clk 0:00:05.8]} 41... axb4 {[%clk 0:01:18.2]} 42.
gxf5 {[%clk 0:00:07.7]} 42... exf5 {[%clk 0:01:14.4]} 43. Re3 {[%clk 0:00:08.2]}
43... bxc3 {[%clk 0:01:12.9]} 44. bxc3 {[%clk 0:00:10.1]} 44... Rb1 {[%clk
0:01:14.1]} 45. Kf2 {[%clk 0:00:06]} 45... Rh1 {[%clk 0:01:13.3]} 46. Rg3 {[%clk
0:00:06.4]} 46... Rb8 {[%clk 0:01:10.3]} 47. Ke3 {[%clk 0:00:02.5]} 47... Rb2
{[%clk 0:01:04.3]} 48. Rxe4 {[%clk 0:00:03.4]} 48... Re1+ {[%clk 0:01:05.5]} 49.
Kf4 {[%clk 0:00:03.4]} 49... Rxe4+ {[%clk 0:01:06.8]} 50. Kxf5 {[%clk
0:00:04.8]} 50... Rxh4 {[%clk 0:01:08.7]} 51. g6 {[%clk 0:00:06.3]} 51... Rb5+
{[%clk 0:00:54.8]} 52. Kf6 {[%clk 0:00:05.6]} 52... Rf4+ {[%clk 0:00:54.9]} 53.
Kg7 {[%clk 0:00:07.2]} 53... Rb7+ {[%clk 0:00:46.8]} 54. Kh6 {[%clk 0:00:07.7]}
54... Rh4+ {[%clk 0:00:47.7]} 55. Kg5 {[%clk 0:00:08.8]} 55... Rh8 {[%clk
0:00:47.1]} 56. Rf3 {[%clk 0:00:06.3]} 56... Rg8 {[%clk 0:00:48.2]} 57. Rf6+
{[%clk 0:00:05.2]} 57... Kd5 {[%clk 0:00:49]} 58. Kf5 {[%clk 0:00:06.6]} 58...
Rb3 {[%clk 0:00:46.8]} 59. Rf7 {[%clk 0:00:07.9]} 59... Rxc3 {[%clk 0:00:46.4]}
60. Rd7+ {[%clk 0:00:05]} 60... Kc6 {[%clk 0:00:47.6]} 61. Ra7 {[%clk
0:00:06.6]} 61... Rf3+ {[%clk 0:00:48.1]} 62. Kg4 {[%clk 0:00:04.6]} 62... Rf1
{[%clk 0:00:46.9]} 63. Ra6+ {[%clk 0:00:06]} 63... Kd5 {[%clk 0:00:47.5]} 64.
Kg5 {[%clk 0:00:04.9]} 64... Rg1+ {[%clk 0:00:47.7]} 65. Kh6 {[%clk 0:00:05.8]}
65... R1xg6+ {[%clk 0:00:49]} 66. Rxg6 {[%clk 0:00:07.7]} 66... Rxg6+ {[%clk
0:00:50.6]} 67. Kxg6 {[%clk 0:00:09.3]} 67... c3 {[%clk 0:00:52.5]} 0-1

[Event "*** Titled Tuesday Blitz"]
[Site "Chess.com"]
[Date "2019.04.02"]
[Round "6"]
[White "GrigorGrigorov"]
[Black "Fy_Rakotomaharo"]
[Result "0-1"]
[WhiteElo "2715"]
[BlackElo "2630"]
[TimeControl "180+2"]
[EndTime "15:21:42 PDT"]
[Termination "Fy_Rakotomaharo won on time"]

1. Nf3 {[%clk 0:03:01.9]} 1... d5 {[%clk 0:02:59.6]} 2. g3 {[%clk 0:03:01.1]}
2... g6 {[%clk 0:03:00.4]} 3. Bg2 {[%clk 0:03:00.7]} 3... Bg7 {[%clk 0:03:01.6]}
4. d4 {[%clk 0:03:01.9]} 4... Nf6 {[%clk 0:03:02.5]} 5. O-O {[%clk 0:03:02.6]}
5... O-O {[%clk 0:03:04]} 6. c4 {[%clk 0:03:03.7]} 6... c6 {[%clk 0:03:05.6]} 7.
Qb3 {[%clk 0:03:04.2]} 7... Qb6 {[%clk 0:03:01.7]} 8. Nc3 {[%clk 0:03:04.2]}
8... Rd8 {[%clk 0:03:03]} 9. Bd2 {[%clk 0:03:05]} 9... Be6 {[%clk 0:02:52.1]}
10. Na4 {[%clk 0:02:56]} 10... Qxb3 {[%clk 0:02:50.4]} 11. axb3 {[%clk
0:02:57.7]} 11... Nbd7 {[%clk 0:02:52]} 12. Rfc1 {[%clk 0:02:55.1]} 12... Ne4
{[%clk 0:02:44.8]} 13. Ba5 {[%clk 0:02:54.9]} 13... Rdc8 {[%clk 0:02:41.5]} 14.
e3 {[%clk 0:02:54.7]} 14... f5 {[%clk 0:02:41.4]} 15. Be1 {[%clk 0:02:12.4]}
15... Bf7 {[%clk 0:02:29.2]} 16. Nc3 {[%clk 0:01:54]} 16... Nxc3 {[%clk
0:02:25.6]} 17. Rxc3 {[%clk 0:01:41.4]} 17... e5 {[%clk 0:02:26.7]} 18. Nxe5
{[%clk 0:01:19.4]} 18... Nxe5 {[%clk 0:02:27.1]} 19. dxe5 {[%clk 0:01:21.3]}
19... Bxe5 {[%clk 0:02:28.5]} 20. Rc2 {[%clk 0:01:21.8]} 20... Rd8 {[%clk
0:02:11.8]} 21. cxd5 {[%clk 0:01:15]} 21... Bxd5 {[%clk 0:02:12.1]} 22. Bxd5+
{[%clk 0:01:15.8]} 22... Rxd5 {[%clk 0:02:12.9]} 23. Bc3 {[%clk 0:01:16.5]}
23... Bxc3 {[%clk 0:02:07]} 24. bxc3 {[%clk 0:01:17.6]} 24... a6 {[%clk
0:02:08.6]} 25. c4 {[%clk 0:01:14.4]} 25... Rd3 {[%clk 0:02:05.8]} 26. Rb1
{[%clk 0:01:05.4]} 26... Rad8 {[%clk 0:02:05.5]} 27. Kf1 {[%clk 0:01:06.8]}
27... Rd1+ {[%clk 0:02:03.1]} 28. Rxd1 {[%clk 0:01:06.4]} 28... Rxd1+ {[%clk
0:02:05]} 29. Ke2 {[%clk 0:01:07.7]} 29... Rb1 {[%clk 0:02:06.6]} 30. Rc3 {[%clk
0:01:08.1]} 30... Rb2+ {[%clk 0:02:06.6]} 31. Kf3 {[%clk 0:01:08.7]} 31... Kf7
{[%clk 0:01:59.4]} 32. Rd3 {[%clk 0:01:08.9]} 32... Ke6 {[%clk 0:01:59.8]} 33.
h3 {[%clk 0:01:10.4]} 33... g5 {[%clk 0:01:50.6]} 34. g4 {[%clk 0:01:10.6]}
34... h6 {[%clk 0:01:42.2]} 35. Kg3 {[%clk 0:01:07.8]} 35... a5 {[%clk
0:01:36.4]} 36. f4 {[%clk 0:01:04.1]} 36... Rc2 {[%clk 0:01:18.3]} 37. Kf3
{[%clk 0:01:03.6]} 37... gxf4 {[%clk 0:01:04.3]} 38. exf4 {[%clk 0:01:03.9]}
38... b6 {[%clk 0:00:53.7]} 39. Re3+ {[%clk 0:00:56.7]} 39... Kf6 {[%clk
0:00:52.8]} 40. Kg3 {[%clk 0:00:53.1]} 40... b5 {[%clk 0:00:47.6]} 41. cxb5
{[%clk 0:00:52.1]} 41... cxb5 {[%clk 0:00:49.5]} 42. gxf5 {[%clk 0:00:44.9]}
42... b4 {[%clk 0:00:49.9]} 43. Re6+ {[%clk 0:00:38.2]} 43... Kxf5 {[%clk
0:00:37.6]} 44. Re5+ {[%clk 0:00:39.4]} 44... Kf6 {[%clk 0:00:37.7]} 45. Rxa5
{[%clk 0:00:40.5]} 45... Rc3+ {[%clk 0:00:38.6]} 46. Kg4 {[%clk 0:00:41.6]}
46... Rxb3 {[%clk 0:00:40.2]} 47. Ra6+ {[%clk 0:00:42.5]} 47... Kg7 {[%clk
0:00:39.2]} 48. h4 {[%clk 0:00:40.2]} 48... Rc3 {[%clk 0:00:29.8]} 49. Rb6
{[%clk 0:00:39.5]} 49... b3 {[%clk 0:00:30.7]} 50. Kf5 {[%clk 0:00:34.3]} 50...
Rc5+ {[%clk 0:00:31]} 51. Ke4 {[%clk 0:00:34.8]} 51... Rc4+ {[%clk 0:00:31.3]}
52. Ke5 {[%clk 0:00:36.1]} 52... Rc5+ {[%clk 0:00:31]} 53. Ke6 {[%clk
0:00:32.3]} 53... Rh5 {[%clk 0:00:21.1]} 54. f5 {[%clk 0:00:19.5]} 54... Rxh4
{[%clk 0:00:22.3]} 55. Rb7+ {[%clk 0:00:20.7]} 55... Kg8 {[%clk 0:00:22.8]} 56.
Rxb3 {[%clk 0:00:19.3]} 56... Rf4 {[%clk 0:00:18.8]} 57. Kf6 {[%clk 0:00:14.6]}
57... Ra4 {[%clk 0:00:14.5]} 58. Rb8+ {[%clk 0:00:05.9]} 58... Kh7 {[%clk
0:00:15.4]} 59. Rb7+ {[%clk 0:00:05]} 59... Kg8 {[%clk 0:00:16.8]} 0-1

[Event "*** Titled Tuesday Blitz"]
[Site "Chess.com"]
[Date "2019.04.02"]
[Round "6"]
[White "DanielMieles1985"]
[Black "ChainsOfFantasia"]
[Result "0-1"]
[WhiteElo "2645"]
[BlackElo "2473"]
[TimeControl "180+2"]
[EndTime "15:22:02 PDT"]
[Termination "ChainsOfFantasia won by resignation"]

1. d4 {[%clk 0:03:01.9]} 1... Nf6 {[%clk 0:03:00.6]} 2. c4 {[%clk 0:03:03.1]}
2... e6 {[%clk 0:03:02.1]} 3. Nc3 {[%clk 0:03:04]} 3... d5 {[%clk 0:03:03.6]} 4.
cxd5 {[%clk 0:03:01.4]} 4... exd5 {[%clk 0:03:05.5]} 5. Bg5 {[%clk 0:03:02.4]}
5... Be7 {[%clk 0:03:06.4]} 6. e3 {[%clk 0:03:03.3]} 6... c6 {[%clk 0:03:08]} 7.
Bd3 {[%clk 0:03:04.3]} 7... Nbd7 {[%clk 0:03:09.5]} 8. Nge2 {[%clk 0:03:02.7]}
8... Nh5 {[%clk 0:03:10.5]} 9. Bxe7 {[%clk 0:03:03.1]} 9... Qxe7 {[%clk
0:03:12.4]} 10. Qd2 {[%clk 0:03:04.7]} 10... g6 {[%clk 0:03:11]} 11. O-O {[%clk
0:03:03.7]} 11... O-O {[%clk 0:03:11.6]} 12. f3 {[%clk 0:03:02.8]} 12... f5
{[%clk 0:03:12.4]} 13. Bc2 {[%clk 0:02:59.5]} 13... Ndf6 {[%clk 0:03:13.3]} 14.
Rae1 {[%clk 0:02:58.2]} 14... b5 {[%clk 0:03:12.6]} 15. a3 {[%clk 0:02:58.1]}
15... Bb7 {[%clk 0:03:07.9]} 16. Nc1 {[%clk 0:02:59]} 16... a5 {[%clk
0:03:06.9]} 17. Nd3 {[%clk 0:02:59.2]} 17... b4 {[%clk 0:03:08.3]} 18. axb4
{[%clk 0:02:54.2]} 18... axb4 {[%clk 0:03:10.2]} 19. Na4 {[%clk 0:02:55.4]}
19... Ba6 {[%clk 0:03:09.1]} 20. Nac5 {[%clk 0:02:51.7]} 20... Bxd3 {[%clk
0:03:09.2]} 21. Bxd3 {[%clk 0:02:51]} 21... Rab8 {[%clk 0:03:05.9]} 22. Ra1
{[%clk 0:02:45.2]} 22... Rfe8 {[%clk 0:03:03]} 23. Rfe1 {[%clk 0:02:43.7]} 23...
Qd6 {[%clk 0:02:53]} 24. g3 {[%clk 0:02:15.9]} 24... Nd7 {[%clk 0:02:47.7]} 25.
Nxd7 {[%clk 0:02:09.2]} 25... Qxd7 {[%clk 0:02:49.6]} 26. Kg2 {[%clk 0:02:09.6]}
26... Nf6 {[%clk 0:02:42.5]} 27. Ra6 {[%clk 0:02:07.7]} 27... Re6 {[%clk
0:02:36.4]} 28. Rc1 {[%clk 0:01:52.5]} 28... Rbe8 {[%clk 0:02:34]} 29. Qxb4
{[%clk 0:01:48.7]} 29... Rxe3 {[%clk 0:02:31.2]} 30. Bf1 {[%clk 0:01:44.7]}
30... Qe6 {[%clk 0:02:20.3]} 31. Raxc6 {[%clk 0:01:28.2]} 31... Re2+ {[%clk
0:02:20.7]} 32. Kh1 {[%clk 0:01:29.4]} 32... Qe3 {[%clk 0:02:07.1]} 33. Bxe2
{[%clk 0:01:27.5]} 33... Qxe2 {[%clk 0:02:00.1]} 34. Qb3 {[%clk 0:01:04.5]}
34... Re3 {[%clk 0:01:57.9]} 35. Qb8+ {[%clk 0:01:01.1]} 35... Kg7 {[%clk
0:01:25.9]} 36. Qf4 {[%clk 0:00:50.1]} 36... Re7 {[%clk 0:00:57]} 37. Rc7 {[%clk
0:00:44.5]} 37... Nd7 {[%clk 0:00:43.1]} 38. Rxd7 {[%clk 0:00:28.4]} 38... Rxd7
{[%clk 0:00:43.5]} 39. Qe5+ {[%clk 0:00:30.1]} 39... Qxe5 {[%clk 0:00:43.3]} 40.
dxe5 {[%clk 0:00:31.8]} 40... d4 {[%clk 0:00:41.2]} 41. f4 {[%clk 0:00:30.9]}
41... Kf7 {[%clk 0:00:42]} 42. Kg2 {[%clk 0:00:30]} 42... Rb7 {[%clk 0:00:41.9]}
43. Kf3 {[%clk 0:00:22.5]} 43... Rb3+ {[%clk 0:00:39.2]} 44. Ke2 {[%clk
0:00:23.3]} 44... Rxb2+ {[%clk 0:00:41.1]} 45. Kd3 {[%clk 0:00:24.6]} 45... Rxh2
{[%clk 0:00:40.2]} 46. Rc6 {[%clk 0:00:21.3]} 46... Rg2 {[%clk 0:00:39]} 47.
Kxd4 {[%clk 0:00:21.7]} 47... Rxg3 {[%clk 0:00:40.1]} 48. Rc7+ {[%clk
0:00:21.5]} 48... Ke6 {[%clk 0:00:41.1]} 49. Rc6+ {[%clk 0:00:22.6]} 49... Kd7
{[%clk 0:00:40.9]} 50. Ra6 {[%clk 0:00:18.2]} 50... Rf3 {[%clk 0:00:41.4]} 51.
e6+ {[%clk 0:00:18]} 51... Ke7 {[%clk 0:00:40.5]} 52. Ke5 {[%clk 0:00:19.3]}
52... Re3+ {[%clk 0:00:41.1]} 53. Kd5 {[%clk 0:00:20.7]} 53... Kf6 {[%clk
0:00:38.6]} 54. Ra7 {[%clk 0:00:17.9]} 54... Rxe6 {[%clk 0:00:31.6]} 55. Rxh7
{[%clk 0:00:15.4]} 55... Re4 {[%clk 0:00:32.9]} 56. Rh4 {[%clk 0:00:15.4]} 56...
Rb4 {[%clk 0:00:33.3]} 57. Kc5 {[%clk 0:00:15.5]} 57... Re4 {[%clk 0:00:33.2]}
58. Kd5 {[%clk 0:00:16.8]} 58... Ra4 {[%clk 0:00:34.1]} 59. Kc5 {[%clk
0:00:17.2]} 59... Kg7 {[%clk 0:00:34.6]} 60. Kd5 {[%clk 0:00:15.2]} 60... g5
{[%clk 0:00:33.8]} 61. Rh5 {[%clk 0:00:16]} 61... gxf4 {[%clk 0:00:33.5]} 62.
Ke5 {[%clk 0:00:12.3]} 62... Kg6 {[%clk 0:00:32.3]} 63. Rh1 {[%clk 0:00:11.7]}
63... Re4+ {[%clk 0:00:32.4]} 64. Kd5 {[%clk 0:00:12.5]} 64... f3 {[%clk
0:00:33.6]} 65. Rf1 {[%clk 0:00:12.9]} 65... Re3 {[%clk 0:00:33.6]} 66. Kd4
{[%clk 0:00:10.9]} 66... f4 {[%clk 0:00:34.9]} 67. Ra1 {[%clk 0:00:06]} 67...
Kg5 {[%clk 0:00:34.7]} 68. Rf1 {[%clk 0:00:05.9]} 68... Kg4 {[%clk 0:00:35]} 0-1